{"text_format":"3","workbook":"xlsx","n_sheets":5,"sheets":["Vista general de la fiesta","Lista de invitados","Comida y bebida","Otros básicos","Disposición de las sillas"],"not_rendered":{"defined_names":9},"read":"whole","date_system":"1900"}

{"sheet":"Vista general de la fiesta","index":0,"n_rows":21,"n_cols":8,"rows_kept":21,"merged":[[6,3,6,4],[6,5,6,6],[9,1,9,2]]}
[]
[]
[null,"Vista general de la fiesta"]
[]
[]
[null,"EVENTO",null,"RESUMEN DE INVITADOS",{"$nulls":3},{"$f":"\"NEATBILDĒJUŠIE UZAICINĀTIE: \"&RSVPPendientes","v":"NEATBILDĒJUŠIE UZAICINĀTIE: 2"}]
[null,"El cumpleaños de 75 años de la abuela",null,"VISTA GENERAL DE CONFIRMACIÓN DE ASISTENCIA",null,"COSTES POR INVITADO",null,"IMPORTE DE PRESUPUESTO"]
[{"$nulls":3},"Invitados confirmados","Total confirmados","Comida","Otros","Total"]
[null,"FECHA",null,"Adultos",{"$f":"SUMIF(TablaInvitados[¿ASISTIRÁ?],\"=Sí\",TablaInvitados[ADULTOS])","v":26},{"$f":"TablaComida[[#Totals],[COSTE POR ADULTO]]","v":{"v":12.690089084110037,"d":"12.69 €"}},{"$f":"CosteBásicoPorInvitado","v":{"v":18.695652173913043,"d":"18.70 €"}},{"$f":"(ResumenAsistentes[[#This Row],[Comida]]+ResumenAsistentes[[#This Row],[Otros]])*TotalAdultos","v":{"v":816.0292727086002,"d":"816.03 €"}}]
[null,"2011-06-14",null,"Niños",{"$f":"SUMIF(TablaInvitados[¿ASISTIRÁ?],\"=Sí\",TablaInvitados[NIÑOS])","v":20},{"$f":"TablaComida[[#Totals],[COSTE POR NIÑO]]","v":{"v":7.252884190656953,"d":"7.25 €"}},{"$f":"CosteBásicoPorInvitado","v":{"v":18.695652173913043,"d":"18.70 €"}},{"$f":"(ResumenAsistentes[[#This Row],[Comida]]+ResumenAsistentes[[#This Row],[Otros]])*TotalNiños","v":{"v":518.9707272914,"d":"518.97 €"}}]
[{"$nulls":3},"Total",{"$f":"SUBTOTAL(109,ResumenAsistentes[Total confirmados])","v":46},{"$f":"\"Prom.     \"&TEXT(SUBTOTAL(101,ResumenAsistentes[Comida]),\"#.##0,00 €\")","v":"Prom.     9,97 €"},{"$f":"\"Prom.     \"&TEXT(SUBTOTAL(101,ResumenAsistentes[Otros]),\"#.##0,00 €\")","v":"Prom.     18,70 €"},{"$f":"SUBTOTAL(109,ResumenAsistentes[Total])","v":{"v":1335,"d":"1,335.00 €"}}]
[null,"HORA"]
[null,"De 14h a 16h"]
[]
[null,"UBICACIÓN",null,"RESUMEN DE PRESUPUESTO"]
[null,"Casa de la tía Rosa",null,"ARTÍCULO","RECUENTO","IMPORTE DE PRESUPUESTO","COSTE TOTAL","DIFERENCIA"]
[{"$nulls":3},"Comida y bebida",{"$f":"COUNTA(TablaComida[ARTÍCULO DE BEBIDA O COMIDA])","v":18},{"v":500,"d":"500.00 €"},{"$f":"TablaComida[[#Totals],[COSTE TOTAL]]","v":{"v":475,"d":"475.00 €"}},{"$f":"IntroducciónPresupuesto[[#This Row],[IMPORTE DE PRESUPUESTO]]-IntroducciónPresupuesto[[#This Row],[COSTE TOTAL]]","v":{"v":25,"d":"25.00 €"}}]
[{"$nulls":3},{"$f":"EncabezadoTabla1","v":"Equipamiento y provisiones"},{"$f":"COUNTA(PresupuestoTabla1[Equipamiento y provisiones])","v":7},{"v":400,"d":"400.00 €"},{"$f":"PresupuestoTabla1[[#Totals],[Coste]]","v":{"v":400,"d":"400.00 €"}},{"$f":"IntroducciónPresupuesto[[#This Row],[IMPORTE DE PRESUPUESTO]]-IntroducciónPresupuesto[[#This Row],[COSTE TOTAL]]","v":{"v":0,"d":"0.00 €"}}]
[{"$nulls":3},{"$f":"EncabezadoTabla2","v":"Decoración"},{"$f":"COUNTA(PresupuestoTabla2[Decoración])","v":4},{"v":150,"d":"150.00 €"},{"$f":"PresupuestoTabla2[[#Totals],[Coste]]","v":{"v":175,"d":"175.00 €"}},{"$f":"IntroducciónPresupuesto[[#This Row],[IMPORTE DE PRESUPUESTO]]-IntroducciónPresupuesto[[#This Row],[COSTE TOTAL]]","v":{"v":-25,"d":"(25.00 €)"}}]
[{"$nulls":3},{"$f":"Table3Header","v":"Otros"},{"$f":"COUNTA(TPresupuestoTabla3[Otros])","v":4},{"v":300,"d":"300.00 €"},{"$f":"TPresupuestoTabla3[[#Totals],[Coste]]","v":{"v":285,"d":"285.00 €"}},{"$f":"IntroducciónPresupuesto[[#This Row],[IMPORTE DE PRESUPUESTO]]-IntroducciónPresupuesto[[#This Row],[COSTE TOTAL]]","v":{"v":15,"d":"15.00 €"}}]
[{"$nulls":3},"Total",{"$f":"SUBTOTAL(109,IntroducciónPresupuesto[RECUENTO])","v":33},{"$f":"SUBTOTAL(109,IntroducciónPresupuesto[IMPORTE DE PRESUPUESTO])","v":{"v":1350,"d":"1,350.00 €"}},{"$f":"SUBTOTAL(109,IntroducciónPresupuesto[COSTE TOTAL])","v":{"v":1335,"d":"1,335.00 €"}},{"$f":"IntroducciónPresupuesto[[#Totals],[IMPORTE DE PRESUPUESTO]]-IntroducciónPresupuesto[[#Totals],[COSTE TOTAL]]","v":{"v":15,"d":"15.00 €"}}]

{"sheet":"Lista de invitados","index":1,"n_rows":22,"n_cols":12,"rows_kept":22}
[]
[]
[null,"Lista de invitados"]
[]
[]
[]
[null,"NOMBRE","DIRECCIÓN","CIUDAD","Provincia o estado","CÓDIGO POSTAL","TELÉFONO","CORREO ELECTRÓNICO","¿ASISTIRÁ?","NIÑOS","ADULTOS","TOTAL"]
[null,"Familia 1","Dirección 1","Ciudad 1","Provincia o estado 1","Código postal 1","Teléfono 1","Dirección de correo electrónico1","No",2,2,{"$f":"SUM(TablaInvitados[[#This Row],[NIÑOS]:[ADULTOS]])","v":4}]
[null,"Familia 2","Dirección 2","Ciudad 2","Provincia o estado 2","Código postal 2","Teléfono 2","Dirección de correo electrónico2","Sí",1,1,{"$f":"SUM(TablaInvitados[[#This Row],[NIÑOS]:[ADULTOS]])","v":2}]
[null,"Familia 3","Dirección 3","Ciudad 3","Provincia o estado 3","Código postal 3","Teléfono 3","Dirección de correo electrónico3","Sí",3,3,{"$f":"SUM(TablaInvitados[[#This Row],[NIÑOS]:[ADULTOS]])","v":6}]
[null,"Familia 4","Dirección 4","Ciudad 4","Provincia o estado 4","Código postal 4","Teléfono 4","Dirección de correo electrónico4",null,null,2,{"$f":"SUM(TablaInvitados[[#This Row],[NIÑOS]:[ADULTOS]])","v":2}]
[null,"Familia 5","Dirección 5","Ciudad 5","Provincia o estado 5","Código postal 5","Teléfono 5","Dirección de correo electrónico5","Sí",4,3,{"$f":"SUM(TablaInvitados[[#This Row],[NIÑOS]:[ADULTOS]])","v":7}]
[null,"Familia 6","Dirección 6","Ciudad 6","Provincia o estado 6","Código postal 6","Teléfono 6","Dirección de correo electrónico6","Sí",2,2,{"$f":"SUM(TablaInvitados[[#This Row],[NIÑOS]:[ADULTOS]])","v":4}]
[null,"Familia 7","Dirección 7","Ciudad 7","Provincia o estado 7","Código postal 7","Teléfono 7","Dirección de correo electrónico7","Sí",1,4,{"$f":"SUM(TablaInvitados[[#This Row],[NIÑOS]:[ADULTOS]])","v":5}]
[null,"Familia 8","Dirección 8","Ciudad 8","Provincia o estado 8","Código postal 8","Teléfono 8","Dirección de correo electrónico8","No",5,3,{"$f":"SUM(TablaInvitados[[#This Row],[NIÑOS]:[ADULTOS]])","v":8}]
[null,"Familia 9","Dirección 9","Ciudad 9","Provincia o estado 9","Código postal 9","Teléfono 9","Dirección de correo electrónico9","Sí",3,2,{"$f":"SUM(TablaInvitados[[#This Row],[NIÑOS]:[ADULTOS]])","v":5}]
[null,"Familia 10","Dirección 10","Ciudad 10","Provincia o estado 10","Código postal 10","Teléfono 10","Dirección de correo electrónico10","Sí",null,4,{"$f":"SUM(TablaInvitados[[#This Row],[NIÑOS]:[ADULTOS]])","v":4}]
[null,"Familia 11","Dirección 11","Ciudad 11","Provincia o estado 11","Código postal 11","Teléfono 11","Dirección de correo electrónico11","Sí",3,5,{"$f":"SUM(TablaInvitados[[#This Row],[NIÑOS]:[ADULTOS]])","v":8}]
[null,"Familia 12","Dirección 12","Ciudad 12","Provincia o estado 12","Código postal 12","Teléfono 12","Dirección de correo electrónico12","No",2,3,{"$f":"SUM(TablaInvitados[[#This Row],[NIÑOS]:[ADULTOS]])","v":5}]
[null,"Familia 13","Dirección 13","Ciudad 13","Provincia o estado 13","Código postal 13","Teléfono 13","Dirección de correo electrónico13","Sí",3,2,{"$f":"SUM(TablaInvitados[[#This Row],[NIÑOS]:[ADULTOS]])","v":5}]
[null,"Familia 14","Dirección 14","Ciudad 14","Provincia o estado 14","Código postal 14","Teléfono 14","Dirección de correo electrónico14","No",null,1,{"$f":"SUM(TablaInvitados[[#This Row],[NIÑOS]:[ADULTOS]])","v":1}]
[null,"Familia 15","Dirección 15","Ciudad 15","Provincia o estado 15","Código postal 15","Teléfono 15","Dirección de correo electrónico15",null,null,2,{"$f":"SUM(TablaInvitados[[#This Row],[NIÑOS]:[ADULTOS]])","v":2}]

{"sheet":"Comida y bebida","index":2,"n_rows":25,"n_cols":10,"rows_kept":25}
[]
[]
[null,"Comida y bebida"]
[]
[null,"Introduzca el coste y las consumiciones aproximadas para calcular automáticamente el total de unidades y el coste por consumición en función del total de asistentes"]
[null,"ARTÍCULO DE BEBIDA O COMIDA","COSTE TOTAL","RACIÓN POR NIÑO","RACIÓN POR ADULTO","TOTAL DE RACIONES","COSTE POR RACIÓN","COSTE POR NIÑO","COSTE POR ADULTO","NOTAS"]
[null,"Refrescos",{"v":15,"d":"15.00 €"},0.5,2,{"$f":"(TablaComida[[#This Row],[RACIÓN POR NIÑO]]*TotalNiños)+(TablaComida[[#This Row],[RACIÓN POR ADULTO]]*TotalAdultos)","v":62},{"$f":"IFERROR(TablaComida[[#This Row],[COSTE TOTAL]]/TablaComida[[#This Row],[TOTAL DE RACIONES]],\"\")","v":{"v":0.24193548387096775,"d":"0.24 €"}},{"$f":"IFERROR(TablaComida[[#This Row],[COSTE POR RACIÓN]]*TablaComida[[#This Row],[RACIÓN POR NIÑO]],\"\")","v":{"v":0.12096774193548387,"d":"0.12 €"}},{"$f":"IFERROR(TablaComida[[#This Row],[COSTE POR RACIÓN]]*TablaComida[[#This Row],[RACIÓN POR ADULTO]],\"\")","v":{"v":0.4838709677419355,"d":"0.48 €"}},"Botellas de 2 litros"]
[null,"Paquetes de zumo",{"v":15,"d":"15.00 €"},2,0,{"$f":"(TablaComida[[#This Row],[RACIÓN POR NIÑO]]*TotalNiños)+(TablaComida[[#This Row],[RACIÓN POR ADULTO]]*TotalAdultos)","v":40},{"$f":"IFERROR(TablaComida[[#This Row],[COSTE TOTAL]]/TablaComida[[#This Row],[TOTAL DE RACIONES]],\"\")","v":{"v":0.375,"d":"0.38 €"}},{"$f":"IFERROR(TablaComida[[#This Row],[COSTE POR RACIÓN]]*TablaComida[[#This Row],[RACIÓN POR NIÑO]],\"\")","v":{"v":0.75,"d":"0.75 €"}},{"$f":"IFERROR(TablaComida[[#This Row],[COSTE POR RACIÓN]]*TablaComida[[#This Row],[RACIÓN POR ADULTO]],\"\")","v":{"v":0,"d":"0.00 €"}},"Manzana y uva blanca"]
[null,"Vino",{"v":50,"d":"50.00 €"},0,2,{"$f":"(TablaComida[[#This Row],[RACIÓN POR NIÑO]]*TotalNiños)+(TablaComida[[#This Row],[RACIÓN POR ADULTO]]*TotalAdultos)","v":52},{"$f":"IFERROR(TablaComida[[#This Row],[COSTE TOTAL]]/TablaComida[[#This Row],[TOTAL DE RACIONES]],\"\")","v":{"v":0.9615384615384616,"d":"0.96 €"}},{"$f":"IFERROR(TablaComida[[#This Row],[COSTE POR RACIÓN]]*TablaComida[[#This Row],[RACIÓN POR NIÑO]],\"\")","v":{"v":0,"d":"0.00 €"}},{"$f":"IFERROR(TablaComida[[#This Row],[COSTE POR RACIÓN]]*TablaComida[[#This Row],[RACIÓN POR ADULTO]],\"\")","v":{"v":1.9230769230769231,"d":"1.92 €"}}]
[null,"Pastel",{"v":75,"d":"75.00 €"},1,1,{"$f":"(TablaComida[[#This Row],[RACIÓN POR NIÑO]]*TotalNiños)+(TablaComida[[#This Row],[RACIÓN POR ADULTO]]*TotalAdultos)","v":46},{"$f":"IFERROR(TablaComida[[#This Row],[COSTE TOTAL]]/TablaComida[[#This Row],[TOTAL DE RACIONES]],\"\")","v":{"v":1.6304347826086956,"d":"1.63 €"}},{"$f":"IFERROR(TablaComida[[#This Row],[COSTE POR RACIÓN]]*TablaComida[[#This Row],[RACIÓN POR NIÑO]],\"\")","v":{"v":1.6304347826086956,"d":"1.63 €"}},{"$f":"IFERROR(TablaComida[[#This Row],[COSTE POR RACIÓN]]*TablaComida[[#This Row],[RACIÓN POR ADULTO]],\"\")","v":{"v":1.6304347826086956,"d":"1.63 €"}},"Encargar en la panadería local"]
[null,"Helado",{"v":20,"d":"20.00 €"},1,1.5,{"$f":"(TablaComida[[#This Row],[RACIÓN POR NIÑO]]*TotalNiños)+(TablaComida[[#This Row],[RACIÓN POR ADULTO]]*TotalAdultos)","v":59},{"$f":"IFERROR(TablaComida[[#This Row],[COSTE TOTAL]]/TablaComida[[#This Row],[TOTAL DE RACIONES]],\"\")","v":{"v":0.3389830508474576,"d":"0.34 €"}},{"$f":"IFERROR(TablaComida[[#This Row],[COSTE POR RACIÓN]]*TablaComida[[#This Row],[RACIÓN POR NIÑO]],\"\")","v":{"v":0.3389830508474576,"d":"0.34 €"}},{"$f":"IFERROR(TablaComida[[#This Row],[COSTE POR RACIÓN]]*TablaComida[[#This Row],[RACIÓN POR ADULTO]],\"\")","v":{"v":0.5084745762711864,"d":"0.51 €"}}]
[null,"Tazas de pudding",{"v":15,"d":"15.00 €"},1,0,{"$f":"(TablaComida[[#This Row],[RACIÓN POR NIÑO]]*TotalNiños)+(TablaComida[[#This Row],[RACIÓN POR ADULTO]]*TotalAdultos)","v":20},{"$f":"IFERROR(TablaComida[[#This Row],[COSTE TOTAL]]/TablaComida[[#This Row],[TOTAL DE RACIONES]],\"\")","v":{"v":0.75,"d":"0.75 €"}},{"$f":"IFERROR(TablaComida[[#This Row],[COSTE POR RACIÓN]]*TablaComida[[#This Row],[RACIÓN POR NIÑO]],\"\")","v":{"v":0.75,"d":"0.75 €"}},{"$f":"IFERROR(TablaComida[[#This Row],[COSTE POR RACIÓN]]*TablaComida[[#This Row],[RACIÓN POR ADULTO]],\"\")","v":{"v":0,"d":"0.00 €"}},"Comprar paquetes de vainilla y chocolate"]
[null,"Setas rellenas",{"v":32,"d":"32.00 €"},1,2,{"$f":"(TablaComida[[#This Row],[RACIÓN POR NIÑO]]*TotalNiños)+(TablaComida[[#This Row],[RACIÓN POR ADULTO]]*TotalAdultos)","v":72},{"$f":"IFERROR(TablaComida[[#This Row],[COSTE TOTAL]]/TablaComida[[#This Row],[TOTAL DE RACIONES]],\"\")","v":{"v":0.4444444444444444,"d":"0.44 €"}},{"$f":"IFERROR(TablaComida[[#This Row],[COSTE POR RACIÓN]]*TablaComida[[#This Row],[RACIÓN POR NIÑO]],\"\")","v":{"v":0.4444444444444444,"d":"0.44 €"}},{"$f":"IFERROR(TablaComida[[#This Row],[COSTE POR RACIÓN]]*TablaComida[[#This Row],[RACIÓN POR ADULTO]],\"\")","v":{"v":0.8888888888888888,"d":"0.89 €"}},"Setas rellenas de queso cremoso y salchicha"]
[null,"Bruschetta",{"v":22,"d":"22.00 €"},0,3,{"$f":"(TablaComida[[#This Row],[RACIÓN POR NIÑO]]*TotalNiños)+(TablaComida[[#This Row],[RACIÓN POR ADULTO]]*TotalAdultos)","v":78},{"$f":"IFERROR(TablaComida[[#This Row],[COSTE TOTAL]]/TablaComida[[#This Row],[TOTAL DE RACIONES]],\"\")","v":{"v":0.28205128205128205,"d":"0.28 €"}},{"$f":"IFERROR(TablaComida[[#This Row],[COSTE POR RACIÓN]]*TablaComida[[#This Row],[RACIÓN POR NIÑO]],\"\")","v":{"v":0,"d":"0.00 €"}},{"$f":"IFERROR(TablaComida[[#This Row],[COSTE POR RACIÓN]]*TablaComida[[#This Row],[RACIÓN POR ADULTO]],\"\")","v":{"v":0.8461538461538461,"d":"0.85 €"}},"Tomate y albahaca "]
[null,"Salmón ahumado",{"v":50,"d":"50.00 €"},1,2,{"$f":"(TablaComida[[#This Row],[RACIÓN POR NIÑO]]*TotalNiños)+(TablaComida[[#This Row],[RACIÓN POR ADULTO]]*TotalAdultos)","v":72},{"$f":"IFERROR(TablaComida[[#This Row],[COSTE TOTAL]]/TablaComida[[#This Row],[TOTAL DE RACIONES]],\"\")","v":{"v":0.6944444444444444,"d":"0.69 €"}},{"$f":"IFERROR(TablaComida[[#This Row],[COSTE POR RACIÓN]]*TablaComida[[#This Row],[RACIÓN POR NIÑO]],\"\")","v":{"v":0.6944444444444444,"d":"0.69 €"}},{"$f":"IFERROR(TablaComida[[#This Row],[COSTE POR RACIÓN]]*TablaComida[[#This Row],[RACIÓN POR ADULTO]],\"\")","v":{"v":1.3888888888888888,"d":"1.39 €"}}]
[null,"Panecillos",{"v":20,"d":"20.00 €"},1,2,{"$f":"(TablaComida[[#This Row],[RACIÓN POR NIÑO]]*TotalNiños)+(TablaComida[[#This Row],[RACIÓN POR ADULTO]]*TotalAdultos)","v":72},{"$f":"IFERROR(TablaComida[[#This Row],[COSTE TOTAL]]/TablaComida[[#This Row],[TOTAL DE RACIONES]],\"\")","v":{"v":0.2777777777777778,"d":"0.28 €"}},{"$f":"IFERROR(TablaComida[[#This Row],[COSTE POR RACIÓN]]*TablaComida[[#This Row],[RACIÓN POR NIÑO]],\"\")","v":{"v":0.2777777777777778,"d":"0.28 €"}},{"$f":"IFERROR(TablaComida[[#This Row],[COSTE POR RACIÓN]]*TablaComida[[#This Row],[RACIÓN POR ADULTO]],\"\")","v":{"v":0.5555555555555556,"d":"0.56 €"}},"4 bolsas: surtido"]
[null,"Queso cremoso",{"v":10,"d":"10.00 €"},1,2,{"$f":"(TablaComida[[#This Row],[RACIÓN POR NIÑO]]*TotalNiños)+(TablaComida[[#This Row],[RACIÓN POR ADULTO]]*TotalAdultos)","v":72},{"$f":"IFERROR(TablaComida[[#This Row],[COSTE TOTAL]]/TablaComida[[#This Row],[TOTAL DE RACIONES]],\"\")","v":{"v":0.1388888888888889,"d":"0.14 €"}},{"$f":"IFERROR(TablaComida[[#This Row],[COSTE POR RACIÓN]]*TablaComida[[#This Row],[RACIÓN POR NIÑO]],\"\")","v":{"v":0.1388888888888889,"d":"0.14 €"}},{"$f":"IFERROR(TablaComida[[#This Row],[COSTE POR RACIÓN]]*TablaComida[[#This Row],[RACIÓN POR ADULTO]],\"\")","v":{"v":0.2777777777777778,"d":"0.28 €"}},"2 tubos grandes"]
[null,"Alcaparras",{"v":12,"d":"12.00 €"},1,2,{"$f":"(TablaComida[[#This Row],[RACIÓN POR NIÑO]]*TotalNiños)+(TablaComida[[#This Row],[RACIÓN POR ADULTO]]*TotalAdultos)","v":72},{"$f":"IFERROR(TablaComida[[#This Row],[COSTE TOTAL]]/TablaComida[[#This Row],[TOTAL DE RACIONES]],\"\")","v":{"v":0.16666666666666666,"d":"0.17 €"}},{"$f":"IFERROR(TablaComida[[#This Row],[COSTE POR RACIÓN]]*TablaComida[[#This Row],[RACIÓN POR NIÑO]],\"\")","v":{"v":0.16666666666666666,"d":"0.17 €"}},{"$f":"IFERROR(TablaComida[[#This Row],[COSTE POR RACIÓN]]*TablaComida[[#This Row],[RACIÓN POR ADULTO]],\"\")","v":{"v":0.3333333333333333,"d":"0.33 €"}},"3 botes"]
[null,"Alitas de pollo",{"v":45,"d":"45.00 €"},2,4,{"$f":"(TablaComida[[#This Row],[RACIÓN POR NIÑO]]*TotalNiños)+(TablaComida[[#This Row],[RACIÓN POR ADULTO]]*TotalAdultos)","v":144},{"$f":"IFERROR(TablaComida[[#This Row],[COSTE TOTAL]]/TablaComida[[#This Row],[TOTAL DE RACIONES]],\"\")","v":{"v":0.3125,"d":"0.31 €"}},{"$f":"IFERROR(TablaComida[[#This Row],[COSTE POR RACIÓN]]*TablaComida[[#This Row],[RACIÓN POR NIÑO]],\"\")","v":{"v":0.625,"d":"0.63 €"}},{"$f":"IFERROR(TablaComida[[#This Row],[COSTE POR RACIÓN]]*TablaComida[[#This Row],[RACIÓN POR ADULTO]],\"\")","v":{"v":1.25,"d":"1.25 €"}},"Comprado en la pollería local"]
[null,"Humus",{"v":10,"d":"10.00 €"},4,6,{"$f":"(TablaComida[[#This Row],[RACIÓN POR NIÑO]]*TotalNiños)+(TablaComida[[#This Row],[RACIÓN POR ADULTO]]*TotalAdultos)","v":236},{"$f":"IFERROR(TablaComida[[#This Row],[COSTE TOTAL]]/TablaComida[[#This Row],[TOTAL DE RACIONES]],\"\")","v":{"v":0.0423728813559322,"d":"0.04 €"}},{"$f":"IFERROR(TablaComida[[#This Row],[COSTE POR RACIÓN]]*TablaComida[[#This Row],[RACIÓN POR NIÑO]],\"\")","v":{"v":0.1694915254237288,"d":"0.17 €"}},{"$f":"IFERROR(TablaComida[[#This Row],[COSTE POR RACIÓN]]*TablaComida[[#This Row],[RACIÓN POR ADULTO]],\"\")","v":{"v":0.2542372881355932,"d":"0.25 €"}},"Prepararlo la noche anterior"]
[null,"Patatas pita con parmesano",{"v":14,"d":"14.00 €"},4,6,{"$f":"(TablaComida[[#This Row],[RACIÓN POR NIÑO]]*TotalNiños)+(TablaComida[[#This Row],[RACIÓN POR ADULTO]]*TotalAdultos)","v":236},{"$f":"IFERROR(TablaComida[[#This Row],[COSTE TOTAL]]/TablaComida[[#This Row],[TOTAL DE RACIONES]],\"\")","v":{"v":0.059322033898305086,"d":"0.06 €"}},{"$f":"IFERROR(TablaComida[[#This Row],[COSTE POR RACIÓN]]*TablaComida[[#This Row],[RACIÓN POR NIÑO]],\"\")","v":{"v":0.23728813559322035,"d":"0.24 €"}},{"$f":"IFERROR(TablaComida[[#This Row],[COSTE POR RACIÓN]]*TablaComida[[#This Row],[RACIÓN POR ADULTO]],\"\")","v":{"v":0.3559322033898305,"d":"0.36 €"}},"Prepararlo la noche anterior"]
[null,"Surtido de verduras",{"v":30,"d":"30.00 €"},4,10,{"$f":"(TablaComida[[#This Row],[RACIÓN POR NIÑO]]*TotalNiños)+(TablaComida[[#This Row],[RACIÓN POR ADULTO]]*TotalAdultos)","v":340},{"$f":"IFERROR(TablaComida[[#This Row],[COSTE TOTAL]]/TablaComida[[#This Row],[TOTAL DE RACIONES]],\"\")","v":{"v":0.08823529411764706,"d":"0.09 €"}},{"$f":"IFERROR(TablaComida[[#This Row],[COSTE POR RACIÓN]]*TablaComida[[#This Row],[RACIÓN POR NIÑO]],\"\")","v":{"v":0.35294117647058826,"d":"0.35 €"}},{"$f":"IFERROR(TablaComida[[#This Row],[COSTE POR RACIÓN]]*TablaComida[[#This Row],[RACIÓN POR ADULTO]],\"\")","v":{"v":0.8823529411764707,"d":"0.88 €"}},"Zanahoria, apio, brócoli, coliflor, pimientos verdes y rojos"]
[null,"Bola de queso",{"v":15,"d":"15.00 €"},5,10,{"$f":"(TablaComida[[#This Row],[RACIÓN POR NIÑO]]*TotalNiños)+(TablaComida[[#This Row],[RACIÓN POR ADULTO]]*TotalAdultos)","v":360},{"$f":"IFERROR(TablaComida[[#This Row],[COSTE TOTAL]]/TablaComida[[#This Row],[TOTAL DE RACIONES]],\"\")","v":{"v":0.041666666666666664,"d":"0.04 €"}},{"$f":"IFERROR(TablaComida[[#This Row],[COSTE POR RACIÓN]]*TablaComida[[#This Row],[RACIÓN POR NIÑO]],\"\")","v":{"v":0.20833333333333331,"d":"0.21 €"}},{"$f":"IFERROR(TablaComida[[#This Row],[COSTE POR RACIÓN]]*TablaComida[[#This Row],[RACIÓN POR ADULTO]],\"\")","v":{"v":0.41666666666666663,"d":"0.42 €"}},"Surtido: queso cremoso, queso curado con nueces"]
[null,"Galletas saladas",{"v":25,"d":"25.00 €"},5,10,{"$f":"(TablaComida[[#This Row],[RACIÓN POR NIÑO]]*TotalNiños)+(TablaComida[[#This Row],[RACIÓN POR ADULTO]]*TotalAdultos)","v":360},{"$f":"IFERROR(TablaComida[[#This Row],[COSTE TOTAL]]/TablaComida[[#This Row],[TOTAL DE RACIONES]],\"\")","v":{"v":0.06944444444444445,"d":"0.07 €"}},{"$f":"IFERROR(TablaComida[[#This Row],[COSTE POR RACIÓN]]*TablaComida[[#This Row],[RACIÓN POR NIÑO]],\"\")","v":{"v":0.3472222222222222,"d":"0.35 €"}},{"$f":"IFERROR(TablaComida[[#This Row],[COSTE POR RACIÓN]]*TablaComida[[#This Row],[RACIÓN POR ADULTO]],\"\")","v":{"v":0.6944444444444444,"d":"0.69 €"}},"Surtido"]
[null,"Total",{"$f":"SUBTOTAL(109,TablaComida[COSTE TOTAL])","v":{"v":475,"d":"475.00 €"}},{"$f":"SUBTOTAL(109,TablaComida[RACIÓN POR NIÑO])","v":34.5},{"$f":"SUBTOTAL(109,TablaComida[RACIÓN POR ADULTO])","v":65.5},{"$f":"SUBTOTAL(109,TablaComida[TOTAL DE RACIONES])","v":2393},{"$f":"SUBTOTAL(109,TablaComida[COSTE POR RACIÓN])","v":{"v":6.915706603622084,"d":"6.92 €"}},{"$f":"SUBTOTAL(109,TablaComida[COSTE POR NIÑO])","v":{"v":7.252884190656953,"d":"7.25 €"}},{"$f":"SUBTOTAL(109,TablaComida[COSTE POR ADULTO])","v":{"v":12.690089084110037,"d":"12.69 €"}}]

{"sheet":"Otros básicos","index":3,"n_rows":30,"n_cols":5,"rows_kept":30,"merged":[[14,1,14,4],[22,1,22,4]]}
[]
[]
[null,"Otros básicos"]
[]
[]
[null,"Equipamiento y provisiones","Coste","Comprados","Apuntes"]
[null,"Alquiler de sala/recepción",{"v":250,"d":"250.00 €"},"Sí"]
[null,"Mantelería",{"v":30,"d":"30.00 €"},"Sí","Alquiler"]
[null,"Mesas y sillas",{"v":0,"d":"0.00 €"},null,"Incluido en el alquiler del local"]
[null,"Servilletas para el aperitivo",{"v":25,"d":"25.00 €"}]
[null,"Servilletas para la cena",{"v":20,"d":"20.00 €"},null,"Alquiler"]
[null,"Servicio de camareros",{"v":50,"d":"50.00 €"},null,"Alquiler"]
[null,"Cristalería",{"v":25,"d":"25.00 €"},null,"Alquiler"]
[null,"Total",{"$f":"SUBTOTAL(109,PresupuestoTabla1[Coste])","v":{"v":400,"d":"400.00 €"}}]
[]
[]
[null,"Decoración","Coste","Comprados","Apuntes"]
[null,"Globos",{"v":25,"d":"25.00 €"}]
[null,"Bombona de helio",{"v":50,"d":"50.00 €"},null,"Alquiler"]
[null,"Centros de mesa",{"v":100,"d":"100.00 €"},"Sí","10 total"]
[null,"Floreros de cristal",{"v":0,"d":"0.00 €"},null,"Prestado de Laura"]
[null,"Total",{"$f":"SUBTOTAL(109,PresupuestoTabla2[Coste])","v":{"v":175,"d":"175.00 €"}}]
[]
[]
[null,"Otros","Coste","Comprados","Apuntes"]
[null,"Invitaciones",{"v":50,"d":"50.00 €"},"Sí"]
[null,"Franqueo",{"v":60,"d":"60.00 €"},"Sí"]
[null,"Fotógrafo",{"v":125,"d":"125.00 €"},null,"2 horas (de 14h a 16h)"]
[null,"Cotillón",{"v":50,"d":"50.00 €"}]
[null,"Total",{"$f":"SUBTOTAL(109,TPresupuestoTabla3[Coste])","v":{"v":285,"d":"285.00 €"}}]

{"sheet":"Disposición de las sillas","index":4,"n_rows":43,"n_cols":34,"rows_kept":43,"merged":[[35,0,35,17],[35,19,35,33]]}
["Disposición de las sillas"]
{"$rows_empty":33}
[{"$nulls":33},"*1 cuadrado= aproximadamente 0,3 metros cuadrados"]
["Apuntes",{"$nulls":18},{"$f":"\" Total confirmed guests: \"&InvitadosConfirmados","v":" Total confirmed guests: 46"}]
[{"$nulls":19},"Puede usar cualquiera de las siguientes disposiciones de mesa:"]
[{"$nulls":20},{"$f":"ROUNDUP(InvitadosConfirmados/6,0)&\" mesas redondas de 140 centímetros (6 asientos)\"","v":"8 mesas redondas de 140 centímetros (6 asientos)"}]
[{"$nulls":20},{"$f":"ROUNDUP(InvitadosConfirmados/8,0) &\" mesas redondas de 150 centímetros (8 asientos)\"","v":"6 mesas redondas de 150 centímetros (8 asientos)"}]
[{"$nulls":20},{"$f":"ROUNDUP(InvitadosConfirmados/10,0)&\" mesas redondas de 180 centímetros (10 asientos)\"","v":"5 mesas redondas de 180 centímetros (10 asientos)"}]
[{"$nulls":20},{"$f":"ROUNDUP(InvitadosConfirmados/6,0)& \" mesas rectangulares de 75 centímetros x 180 centímetros (6 asientos)\"","v":"8 mesas rectangulares de 75 centímetros x 180 centímetros (6 asientos)"}]
[{"$nulls":20},{"$f":"ROUNDUP(InvitadosConfirmados/8,0)&\" mesas rectangulares de 75 centímetros x 240 centímetros (8 asientos)\"","v":"6 mesas rectangulares de 75 centímetros x 240 centímetros (8 asientos)"}]
[{"$nulls":19},"(Espacio deseado entre mesas: 1 metro)"]